bitfinex/quotes_SOLUSD_20230111
["timestamp","ask_amount","ask_price","bid_price","bid_amount"]
[1673396786442,20.0,16.215,16.209,24.679453]
[1673396786651,17.0,16.214,16.209,24.679453]
[1673396787302,20.0,16.212,16.209,24.679453]
[1673396787495,63.29,16.211,16.209,24.679453]
[1673396788159,63.29,16.211,16.204,6.026915]
[1673396788337,25.98,16.21,16.204,6.026915]
[1673396788545,17.0,16.209,16.204,6.026915]
[1673396790435,108.2644,16.218,16.204,6.026915]
[1673396790657,26.22,16.22,16.204,6.026915]
[1673396791930,17.0,16.219,16.204,6.026915]
[1673396792343,26.22,16.22,16.204,6.026915]
[1673396793707,17.0,16.219,16.204,6.026915]
[1673396794127,26.22,16.22,16.204,6.026915]
[1673396794559,26.22,16.22,16.205,20.0]
[1673396795190,26.22,16.22,16.205,35.22487216]
[1673396795402,26.22,16.22,16.206,17.0]
[1673396795612,26.22,16.22,16.205,35.22487216]
[1673396796452,17.0,16.219,16.205,20.0]
[1673396797397,17.0,16.219,16.204,26.026915]
[1673396797607,66.27,16.218,16.204,6.026915]
[1673396797813,17.0,16.217,16.204,6.026915]
[1673396798021,46.27,16.216,16.204,6.026915]
[1673396798231,17.0,16.215,16.204,6.026915]
[1673396798647,46.28,16.214,16.204,6.026915]
[1673396798871,17.0,16.213,16.204,6.026915]
[1673396799488,17.0,16.214,16.204,6.026915]
[1673396799706,46.27,16.215,16.204,6.026915]
[1673396800022,46.26,16.219,16.204,6.026915]
[1673396800551,20.0,16.218,16.204,6.026915]
[1673396800763,46.27,16.217,16.204,6.026915]
[1673396801179,17.0,16.216,16.204,6.026915]
[1673396802761,46.27,16.215,16.204,6.026915]
[1673396802970,17.0,16.214,16.204,6.026915]
[1673396806349,25.98,16.21,16.204,6.026915]
[1673396806873,63.29,16.209,16.204,6.026915]
[1673396807076,17.0,16.209,16.204,6.026915]
[1673396807492,63.29,16.209,16.204,6.026915]
[1673396808021,20.0,16.208,16.196,24.699221]
[1673396808222,231.2,16.207,16.196,24.699221]
[1673396808427,17.0,16.206,16.196,18.672306]
[1673396808640,86.3,16.205,16.196,18.672306]
[1673396808851,17.0,16.204,16.196,18.672306]
[1673396809065,20.0,16.202,16.196,18.672306]
[1673396809272,20.0,16.2,16.196,6e-06]
[1673396809487,46.32,16.199,16.185,20.0]
[1673396809692,17.0,16.198,16.185,20.0]
[1673396809922,46.33,16.197,16.185,20.0]
[1673396810118,17.0,16.196,16.185,20.0]
[1673396814320,46.32,16.199,16.185,20.0]
[1673396814952,20.0,16.199,16.185,20.0]
[1673396815165,46.32,16.198,16.185,20.0]
[1673396815598,46.32,16.199,16.185,20.0]
[1673396816347,17.0,16.198,16.185,20.0]
[1673396819265,46.32,16.199,16.186,17.0]
[1673396819481,25.98,16.2,16.187,20.0]
[1673396819887,66.31,16.203,16.187,20.0]
[1673396820310,46.29,16.208,16.19,25.88]
[1673396820522,26.22,16.21,16.191,20.0]
[1673396820740,26.22,16.21,16.191,243.4326]
[1673396820933,26.22,16.21,16.192,20.0]
[1673396821147,26.22,16.21,16.194,20.0]
[1673396821377,72.51,16.21,16.194,20.0]
[1673396822013,117.9584,16.209,16.194,20.0]
[1673396822728,117.9584,16.209,16.19,25.88]
[1673396822729,20.0,16.207,16.187,20.0]
[1673396822949,25.78,16.2,16.187,139.3326]
[1673396823159,46.32,16.199,16.187,139.3326]
[1673396823689,25.78,16.2,16.187,139.3326]
[1673396823901,17.0,16.199,16.187,139.3326]
[1673396824217,63.32,16.199,16.187,139.3326]
[1673396824535,46.32,16.199,16.187,139.3326]
[1673396824745,25.78,16.2,16.187,139.3326]
[1673396825057,17.0,16.199,16.187,139.3326]
[1673396827371,17.0,16.199,16.187,119.3326]
[1673396827581,63.32,16.199,16.187,119.3326]
[1673396828645,63.32,16.199,16.182,116.6534]
[1673396829575,63.32,16.199,16.183,44.717908]
[1673396830015,81.87825296,16.199,16.183,44.717908]
[1673396830327,81.87825296,16.199,16.183,24.717908]
[1673396830546,20.0,16.198,16.183,24.717908]
[1673396830848,63.33,16.197,16.183,24.717908]
[1673396832117,20.0,16.196,16.183,24.717908]
[1673396832320,63.33,16.195,16.183,24.717908]
[1673396833273,25.78,16.19,16.183,24.717908]
[1673396833581,17.0,16.189,16.183,24.717908]
[1673396835984,46.35,16.188,16.183,7.307208]
[1673396836195,17.0,16.187,16.183,7.307208]
[1673396836843,17.0,16.188,16.183,7.307208]
[1673396837065,46.35,16.187,16.183,7.307208]
[1673396837386,17.0,16.186,16.183,7.307208]
[1673396837794,46.36,16.185,16.183,7.307208]
[1673396838001,17.0,16.184,16.183,7.307208]
[1673396838327,17.0,16.184,16.179,6.026915]
[1673396838646,46.37,16.183,16.179,6.026915]
[1673396838962,17.0,16.182,16.179,6.026915]
[1673396839153,17.0,16.183,16.179,6.026915]
[1673396839363,20.0,16.182,16.179,6.026915]
[1673396839574,17.0,16.181,16.179,6.026915]
[1673396840425,17.0,16.181,16.169,20.0]
[1673396842846,20.0,16.182,16.169,20.0]
[1673396843058,20.0,16.183,16.169,20.0]
[1673396843269,20.0,16.184,16.169,20.0]
[1673396843676,26.06,16.19,16.172,20.0]
[1673396843910,26.06,16.19,16.173,17.0]
[1673396844118,114.7311,16.194,16.173,17.0]
[1673396844451,64.88825296,16.197,16.174,136.5283]
[1673396844632,46.32,16.199,16.175,44.13351]
[1673396844963,136.5396,16.2,16.175,44.13351]
[1673396845147,136.5396,16.2,16.176,27.13307]
[1673396845362,136.5396,16.2,16.181,20.0]
[1673396845574,136.5396,16.2,16.182,20.0]
[1673396845995,20.0,16.198,16.182,20.0]
[1673396847251,25.78,16.19,16.176,20.0]
[1673396847463,17.0,16.189,16.176,20.0]
[1673396850303,63.35,16.189,16.176,20.0]
[1673396853680,81.90825296,16.189,16.175,20.0]
[1673396854085,81.90825296,16.189,16.16,129.84]
[1673396854294,81.90825296,16.189,16.172,20.0]
[1673396854943,63.35,16.189,16.173,20.0]
[1673396856199,26.22,16.19,16.173,20.0]
[1673396856417,26.22,16.19,16.174,17.0]
[1673396856726,26.22,16.19,16.175,20.0]
[1673396856917,26.22,16.19,16.176,17.0]
[1673396859036,46.34,16.194,16.176,17.0]
[1673396859255,37.0,16.193,16.176,17.0]
[1673396859564,46.34,16.192,16.176,17.0]
[1673396859880,17.0,16.191,16.176,17.0]
[1673396860806,46.35,16.19,16.176,17.0]
[1673396861123,63.34,16.191,16.176,17.0]
[1673396868077,63.34,16.191,16.175,20.0]
[1673396871238,20.0,16.19,16.175,20.0]
[1673396871421,63.35,16.189,16.175,20.0]
[1673396871844,63.35,16.189,16.173,133.6152]
[1673396872066,20.0,16.188,16.173,113.6152]
[1673396872390,63.36,16.187,16.172,20.0]
[1673396872917,20.0,16.186,16.169,116.7187]
[1673396873115,25.78,16.18,16.169,116.7187]
[1673396873315,63.38,16.179,16.16,25.92]
[1673396873525,63.38,16.179,16.165,44.743064]
[1673396874896,46.38,16.179,16.165,44.743064]
[1673396876479,46.38,16.179,16.166,17.0]
[1673396877222,46.38,16.179,16.165,44.743064]
[1673396877954,17.0,16.178,16.165,44.743064]
[1673396878163,46.38,16.177,16.165,44.743064]
[1673396878483,46.38,16.177,16.165,24.743064]
[1673396878686,46.38,16.179,16.165,24.743064]
[1673396878898,17.0,16.178,16.165,24.743064]
[1673396879111,46.38,16.177,16.165,24.743064]
[1673396879320,17.0,16.176,16.165,24.743064]
[1673396879515,46.39,16.175,16.165,24.743064]
[1673396879721,17.0,16.174,16.165,24.743064]
[1673396879946,46.4,16.173,16.165,24.743064]
[1673396881318,46.4,16.173,16.165,22.243064]
[1673396882364,25.78,16.17,16.165,22.243064]
[1673396882777,46.41,16.169,16.165,22.243064]
[1673396882979,26.06,16.18,16.165,22.243064]
[1673396883620,46.38,16.179,16.161,20.0]
[1673396883829,46.38,16.179,16.162,17.0]
[1673396884041,46.38,16.179,16.163,20.0]
[1673396884256,46.38,16.179,16.164,20.0]
[1673396885423,17.0,16.178,16.164,20.0]
[1673396885735,46.38,16.177,16.164,20.0]
[1673396885947,17.0,16.176,16.164,20.0]
[1673396886692,46.38,16.179,16.164,20.0]
[1673396887944,17.0,16.178,16.164,20.0]
[1673396888134,46.38,16.177,16.164,20.0]
[1673396888343,17.0,16.176,16.164,20.0]
[1673396889712,63.38,16.177,16.164,20.0]
[1673396889925,17.0,16.177,16.164,20.0]
[1673396890137,17.0,16.178,16.164,20.0]
[1673396890352,46.38,16.177,16.164,20.0]
[1673396890560,17.0,16.176,16.164,20.0]
[1673396891084,46.38,16.179,16.164,20.0]
[1673396891292,15.55679653,16.182,16.17,129.86]
[1673396891509,15.55679653,16.182,16.171,7.13528]
[1673396891828,139.1793,16.199,16.172,40.0]
[1673396891829,46.32,16.198,16.172,40.0]
[1673396892046,46.32,16.198,16.173,17.0]
[1673396892245,46.32,16.198,16.173,81.24073077]
[1673396892457,20.0,16.197,16.175,20.0]
[1673396892656,66.33,16.196,16.176,130.5514]
[1673396892867,66.33,16.196,16.176,145.49345817]
[1673396893075,66.33,16.196,16.177,14.94205817]
[1673396893325,46.33,16.196,16.178,17.0]
[1673396893530,46.32,16.198,16.18,20.0]
[1673396893846,165.4993,16.199,16.181,37.0]
[1673396894031,165.4993,16.199,16.181,51.94205817]
[1673396894245,165.4993,16.199,16.182,20.0]
[1673396894572,165.4993,16.199,16.183,20.0]
[1673396894773,35.55825296,16.198,16.183,20.0]
[1673396894982,46.33,16.197,16.181,20.0]
[1673396895193,17.0,16.196,16.181,20.0]
[1673396895398,46.33,16.195,16.181,20.0]
[1673396895629,17.0,16.194,16.181,20.0]
[1673396895831,46.34,16.193,16.181,20.0]
[1673396896040,17.0,16.192,16.181,20.0]
[1673396896572,46.33,16.196,16.181,20.0]
[1673396896784,46.32,16.198,16.181,20.0]
[1673396897841,17.0,16.197,16.181,20.0]
[1673396898052,46.33,16.196,16.181,20.0]
[1673396898244,17.0,16.195,16.181,20.0]
[1673396898451,46.33,16.194,16.181,20.0]
[1673396898785,46.32,16.198,16.183,20.0]
[1673396898998,46.32,16.198,16.184,17.0]
[1673396901294,46.32,16.198,16.184,31.93007641]
[1673396901510,46.32,16.199,16.185,20.0]
[1673396901929,26.22,16.2,16.186,17.0]
[1673396902255,46.3,16.205,16.186,17.0]
[1673396902470,20.0,16.204,16.187,20.0]
[1673396902656,46.31,16.203,16.188,17.0]
[1673396902859,20.0,16.202,16.188,17.0]
[1673396903090,46.31,16.201,16.188,17.0]
[1673396903916,46.31,16.201,16.187,20.0]
[1673396904144,20.0,16.202,16.187,20.0]
[1673396904351,46.31,16.201,16.187,20.0]
[1673396904546,25.98,16.2,16.187,20.0]
[1673396904761,63.32,16.199,16.187,20.0]
[1673396905391,63.32,16.199,16.185,20.0]
[1673396907285,81.87825296,16.199,16.18,20.0]
[1673396907495,81.87825296,16.199,16.17,25.98]
[1673396907496,40.0,16.198,16.175,129.0428]
[1673396907707,63.33,16.197,16.176,34.93007641]
[1673396908033,20.0,16.196,16.176,20.0]
[1673396908247,46.33,16.195,16.177,84.22874901]
[1673396908558,17.0,16.194,16.177,69.2986726]
[1673396908776,46.34,16.193,16.178,20.0]
[1673396908987,46.34,16.193,16.179,20.0]
[1673396909296,110.7171,16.199,16.179,20.0]
[1673396909297,46.32,16.198,16.181,20.0]
[1673396909507,63.32,16.198,16.182,37.0]
[1673396910971,46.32,16.198,16.182,37.0]
[1673396911175,46.32,16.198,16.183,20.0]
[1673396911386,46.32,16.198,16.184,17.0]
[1673396913705,46.32,16.198,16.182,249.0396]
[1673396913924,17.0,16.197,16.182,135.0801]
[1673396914121,46.33,16.196,16.182,135.0801]
[1673396914333,17.0,16.195,16.182,135.0801]
[1673396914652,66.33,16.194,16.172,70.02882144]
[1673396914968,17.0,16.193,16.177,84.22874901]
[1673396915287,66.34,16.192,16.177,84.22874901]
[1673396915496,66.34,16.192,16.18,17.0]
[1673396916112,20.0,16.192,16.18,17.0]
[1673396916426,66.33,16.196,16.177,84.22874901]
[1673396916644,17.0,16.195,16.177,69.2986726]
[1673396916858,66.33,16.194,16.177,20.0]
[1673396917053,17.0,16.193,16.177,20.0]
[1673396917267,66.34,16.192,16.177,20.0]
[1673396917583,26.03,16.19,16.177,20.0]
[1673396917795,46.35,16.189,16.177,20.0]
[1673396917996,63.35,16.189,16.177,20.0]
[1673396923281,63.35,16.189,16.175,136.8625]
[1673396923697,46.35,16.189,16.175,136.8625]
[1673396924968,17.0,16.188,16.175,136.8625]
[1673396925164,46.35,16.187,16.175,136.8625]
[1673396925585,17.0,16.188,16.175,136.8625]
[1673396926102,46.35,16.187,16.175,136.8625]
[1673396926314,17.0,16.186,16.175,136.8625]
[1673396930115,66.36,16.185,16.16,25.92]
[1673396930312,185.9574,16.185,16.165,128.4551]
[1673396930522,17.0,16.184,16.168,14.93007641]
[1673396930741,66.37,16.183,16.165,128.4551]
[1673396930945,17.0,16.182,16.165,128.4551]
[1673396931154,46.37,16.181,16.165,128.4551]
[1673396931365,17.0,16.18,16.165,128.4551]
[1673396931576,46.38,16.179,16.165,128.4551]
[1673396933271,46.38,16.179,16.167,17.0]
[1673396933481,46.37,16.181,16.167,17.0]
[1673396934529,46.37,16.181,16.168,20.0]
[1673396934731,46.37,16.181,16.169,17.0]
[1673396938419,17.0,16.18,16.168,20.0]
[1673396938617,46.38,16.179,16.168,20.0]
[1673396938945,17.0,16.178,16.168,20.0]
[1673396939163,46.38,16.177,16.168,20.0]
[1673396939342,17.0,16.178,16.168,20.0]
[1673396939553,46.38,16.177,16.168,20.0]
[1673396944414,46.38,16.177,16.165,128.4551]
[1673396944934,17.0,16.176,16.165,128.4551]
[1673396946215,46.38,16.179,16.165,128.4551]
[1673396946430,46.37,16.181,16.165,128.4551]
[1673396947809,17.0,16.18,16.165,128.4551]
[1673396948119,46.38,16.179,16.165,128.4551]
[1673396948312,17.0,16.178,16.165,128.4551]
[1673396949374,46.37,16.181,16.165,128.4551]
[1673396950729,17.0,16.18,16.165,128.4551]
[1673396951040,46.37,16.181,16.167,17.0]
[1673396951250,165.4219,16.182,16.168,20.0]
[1673396952539,17.0,16.181,16.168,20.0]
[1673396952729,46.38,16.18,16.168,20.0]
[1673396955688,17.0,16.179,16.168,20.0]
[1673396955885,46.38,16.178,16.168,20.0]
[1673396956094,17.0,16.177,16.168,20.0]
[1673396958828,46.37,16.181,16.168,20.0]
[1673396959040,17.0,16.18,16.168,20.0]
[1673396959248,46.38,16.179,16.168,20.0]
[1673396962196,17.0,16.18,16.168,20.0]
[1673396962394,46.37,16.181,16.168,20.0]
[1673396963234,17.0,16.18,16.168,20.0]
[1673396963445,46.38,16.179,16.168,20.0]
[1673396963865,46.38,16.179,16.165,128.4551]
[1673396964514,17.0,16.178,16.165,128.4551]
[1673396965250,46.38,16.177,16.165,128.4551]
[1673396965457,17.0,16.176,16.165,128.4551]
[1673396966505,46.38,16.18,16.165,128.4551]
[1673396966717,17.0,16.179,16.165,128.4551]
[1673396966925,46.38,16.178,16.166,17.0]
[1673396967137,17.0,16.18,16.166,17.0]
[1673396967346,46.38,16.179,16.166,17.0]
[1673396971351,17.0,16.18,16.166,17.0]
[1673396972698,17.0,16.18,16.149,20.0]
[1673396972699,20.0,16.178,16.149,20.0]
[1673396972920,129.95,16.17,16.152,110.441]
[1673396973235,252.3844512,16.169,16.149,20.0]
[1673396973449,1.0744512,16.167,16.149,20.0]
[1673396973677,46.42,16.166,16.149,20.0]
[1673396973849,37.0,16.165,16.149,20.0]
[1673396974060,46.42,16.164,16.149,20.0]
[1673396974392,17.0,16.163,16.149,20.0]
[1673396974606,66.43,16.162,16.149,20.0]
[1673396974816,17.0,16.161,16.149,20.0]
[1673396975021,46.43,16.16,16.149,20.0]
[1673396975231,17.0,16.159,16.149,20.0]
[1673396975448,46.44,16.158,16.149,20.0]
[1673396975634,17.0,16.157,16.149,20.0]
[1673396975846,46.44,16.156,16.149,20.0]
[1673396976080,63.44,16.156,16.149,20.0]
[1673396976285,64.39840601,16.156,16.149,20.0]
[1673396976497,64.39840601,16.156,16.147,20.0]
[1673396976498,17.0,16.155,16.147,20.0]
[1673396978173,17.81333503,16.156,16.147,20.0]
[1673396978490,17.0,16.156,16.147,20.0]
[1673396979310,0.72686763,16.158,16.147,20.0]
[1673396979544,46.44,16.157,16.147,20.0]
[1673396979864,46.44,16.159,16.147,20.0]
[1673396980699,0.66831377,16.158,16.147,20.0]
[1673396980915,46.44,16.157,16.147,20.0]
[1673396981123,46.44,16.159,16.147,20.0]
[1673396982374,0.6713772,16.158,16.147,20.0]
[1673396982574,46.44,16.157,16.147,20.0]
[1673396982785,64.99825296,16.159,16.146,20.0]
[1673396982994,17.0,16.156,16.146,20.0]
[1673396984162,26.14,16.16,16.146,20.0]
[1673396984376,46.42,16.163,16.148,20.0]
[1673396984583,20.0,16.161,16.146,20.0]
[1673396984786,72.57,16.16,16.146,20.0]
[1673396984996,72.57,16.16,16.146,44.775068]
[1673396986987,17.0,16.159,16.146,44.775068]
[1673396987197,46.44,16.158,16.146,44.775068]
[1673396987513,17.0,16.157,16.146,44.775068]
[1673396987727,46.44,16.159,16.147,17.0]
[1673396987944,26.14,16.16,16.147,17.0]
[1673396988137,46.43,16.161,16.147,17.0]
[1673396990464,20.0,16.162,16.148,20.0]
[1673396990675,66.43,16.162,16.149,17.0]
[1673396990903,46.42,16.166,16.149,17.0]
[1673396991116,26.22,16.17,16.149,17.0]
[1673396991117,46.41,16.169,16.15,53.28455]
[1673396991328,46.41,16.169,16.152,20.0]
[1673396991539,26.22,16.17,16.154,20.0]
[1673396992069,26.22,16.17,16.152,20.0]
[1673396992070,18.55825296,16.169,16.152,20.0]
[1673396992275,46.41,16.168,16.153,17.0]
[1673396992790,17.0,16.167,16.153,17.0]
[1673396993002,46.42,16.166,16.153,17.0]
[1673396993218,17.0,16.165,16.152,20.0]
[1673396993431,46.42,16.166,16.153,17.0]
[1673396993740,17.0,16.167,16.153,17.0]
[1673396995105,46.42,16.166,16.153,17.0]
[1673396995629,46.41,16.168,16.153,17.0]
[1673396995842,46.41,16.169,16.153,24.14323]
[1673396996046,26.22,16.17,16.154,20.0]
[1673396996260,46.4,16.171,16.155,17.0]
[1673396996579,46.4,16.171,16.156,20.0]
[1673396996772,160.3591,16.172,16.157,17.0]
[1673396996984,20.0,16.171,16.157,17.0]
[1673396998387,18.55825296,16.176,16.157,17.0]
[1673396998558,46.38,16.178,16.158,42.16894124]
[1673396998777,46.38,16.178,16.161,20.0]
[1673396998979,46.38,16.178,16.162,20.0]
[1673396999192,46.38,16.178,16.163,17.0]
[1673396999617,46.38,16.178,16.163,16.55625534]
[1673397000462,46.38,16.178,16.164,20.0]
[1673397001726,46.38,16.178,16.165,17.0]
[1673397002149,25.96,16.18,16.165,17.0]
[1673397002365,46.38,16.179,16.165,17.0]
[1673397002795,25.96,16.18,16.165,17.0]
[1673397003211,46.38,16.179,16.165,17.0]
[1673397007821,26.08,16.18,16.165,24.13792]
[1673397008032,46.38,16.179,16.165,17.0]
[1673397008895,46.38,16.179,16.165,24.13792]
[1673397009092,46.38,16.179,16.165,7.13792]
[1673397009508,46.38,16.179,16.164,137.8863]
[1673397010366,46.38,16.179,16.165,17.0]
[1673397013085,46.38,16.179,16.164,137.8863]
[1673397013296,17.0,16.178,16.164,137.8863]
[1673397013519,46.38,16.177,16.164,137.8863]
[1673397013920,46.38,16.179,16.164,137.8863]
[1673397014360,46.38,16.179,16.165,17.0]
[1673397014981,104.32,16.19,16.165,17.0]
[1673397014982,46.36,16.184,16.165,17.0]
[1673397015301,46.35,16.188,16.167,0.83723727]
[1673397015506,26.18,16.19,16.171,0.98359465]
[1673397015507,163.1262,16.189,16.171,0.98359465]
[1673397015716,46.35,16.189,16.171,28.11887465]
[1673397015935,46.35,16.19,16.173,0.9965293]
[1673397016254,46.35,16.19,16.175,0.9965293]
[1673397016473,66.32,16.198,16.176,7.13307]
[1673397016781,46.32,16.198,16.177,16.9965293]
[1673397016979,46.32,16.198,16.177,24.1291593]
[1673397017183,20.0,16.197,16.175,20.0]
[1673397017395,26.08,16.19,16.174,20.0]
[1673397017617,63.35,16.189,16.173,108.2068]
[1673397017827,46.35,16.189,16.173,108.2068]
[1673397018336,17.0,16.188,16.173,108.2068]
[1673397018661,46.35,16.187,16.172,112.6992]
[1673397018881,17.0,16.186,16.172,112.6992]
[1673397019095,46.36,16.185,16.172,111.1992]
[1673397019815,17.0,16.184,16.172,111.1992]
[1673397020238,46.37,16.183,16.172,111.1992]
[1673397020449,17.0,16.184,16.172,111.1992]
[1673397021085,17.0,16.184,16.173,20.0]
[1673397022771,17.0,16.184,16.167,20.0]
[1673397022984,20.0,16.182,16.167,20.0]
[1673397023169,83.37,16.181,16.167,20.0]
[1673397023385,66.37,16.181,16.167,20.0]
[1673397023800,46.37,16.181,16.167,20.0]
[1673397024123,20.0,16.187,16.167,20.0]
[1673397024337,46.36,16.186,16.167,20.0]
[1673397024955,20.0,16.185,16.167,20.0]
[1673397025184,83.36,16.184,16.167,20.0]
[1673397025388,26.08,16.18,16.166,20.0]
[1673397025603,63.38,16.179,16.165,134.2583]
[1673397028956,17.0,16.179,16.165,134.2583]
[1673397029289,26.08,16.18,16.165,134.2583]
[1673397030448,17.0,16.179,16.165,20.0]
[1673397033057,17.0,16.179,16.162,20.0]
[1673397033270,46.38,16.178,16.162,20.0]
[1673397033474,17.0,16.177,16.162,20.0]
[1673397033685,46.39,16.176,16.162,20.0]
[1673397033901,17.0,16.175,16.162,20.0]
[1673397034334,46.38,16.179,16.163,17.0]
[1673397034963,17.0,16.178,16.162,20.0]
[1673397035795,20.0,16.177,16.16,115.0]
[1673397036006,63.39,16.176,16.161,20.0]
[1673397037569,20.0,16.175,16.16,115.0]
[1673397037789,63.39,16.174,16.156,20.0]
[1673397037997,20.0,16.173,16.156,20.0]
[1673397038225,63.4,16.172,16.156,20.0]
[1673397038415,20.0,16.171,16.156,20.0]
[1673397038624,17.0,16.17,16.156,20.0]
[1673397039580,146.96,16.17,16.15,20.0]
[1673397039782,20.0,16.168,16.151,20.0]
[1673397039996,63.41,16.167,16.151,20.0]
[1673397040212,46.41,16.167,16.151,20.0]
[1673397040423,17.0,16.166,16.151,20.0]
[1673397040827,46.42,16.165,16.151,20.0]
[1673397041044,17.0,16.164,16.151,20.0]
[1673397041679,17.0,16.164,16.15,20.0]
[1673397041903,26.08,16.16,16.15,20.0]
[1673397044101,125.3675,16.164,16.15,20.0]
[1673397044102,108.3675,16.164,16.151,20.0]
[1673397044299,108.3675,16.164,16.153,20.0]
[1673397046095,108.3675,16.164,16.153,19.0]
[1673397046513,108.3675,16.164,16.15,20.0]
[1673397046705,66.42,16.163,16.15,20.0]
[1673397047144,17.0,16.162,16.15,20.0]
[1673397047353,46.43,16.161,16.15,20.0]
[1673397047675,17.0,16.16,16.15,20.0]
[1673397048298,17.0,16.161,16.15,20.0]
[1673397048502,46.43,16.16,16.15,20.0]
[1673397048823,17.0,16.159,16.15,20.0]
[1673397052925,17.0,16.159,16.149,20.0]
[1673397053139,17.0,16.159,16.148,20.0]
[1673397053356,46.44,16.158,16.148,20.0]
[1673397053876,17.0,16.157,16.148,20.0]
[1673397054728,26.14,16.16,16.148,20.0]
[1673397055023,46.42,16.163,16.148,20.0]
[1673397055241,17.0,16.162,16.149,37.0]
[1673397055448,17.0,16.163,16.15,20.0]
[1673397055655,17.0,16.163,16.151,20.0]
[1673397058292,17.0,16.163,16.152,20.0]
[1673397062401,108.3675,16.164,16.152,20.0]
[1673397063567,108.3675,16.164,16.151,20.0]
[1673397063886,108.3675,16.164,16.15,20.0]
[1673397063887,25.95,16.16,16.15,20.0]
[1673397064495,63.42,16.163,16.15,20.0]
[1673397064703,46.42,16.163,16.15,20.0]
[1673397064919,108.3675,16.164,16.151,17.0]
[1673397065130,108.3675,16.164,16.151,32.02792124]
[1673397065341,108.3675,16.164,16.152,20.0]
[1673397065551,108.3675,16.164,16.154,20.0]
[1673397066395,17.0,16.163,16.154,20.0]
[1673397066808,119.8014,16.167,16.154,20.0]
[1673397067442,46.4,16.172,16.155,17.0]
[1673397067752,163.7341,16.179,16.16,26.13]
[1673397067964,163.7341,16.179,16.161,118.3834]
[1673397068197,163.7341,16.179,16.163,20.0]
[1673397068601,163.7341,16.179,16.164,17.0]
[1673397068807,163.7341,16.179,16.163,20.0]
[1673397069350,46.38,16.179,16.164,17.0]
[1673397069667,26.09,16.18,16.165,20.0]